[Event "XII Cracow ICC-B 2024"]
[Site "Krakow"]
[Date "2024.06.26"]
[Round "6.1"]
[White "Marciniak, Leonard"]
[Black "Gbyl, Andrzej"]
[Result "0-1"]
[ECO "A31"]
[WhiteElo "1937"]
[BlackElo "2152"]
[Annotator "RC"]
[PlyCount "210"]
[EventDate "2024.06.20"]
[EventType "swiss"]
[EventCountry "POL"]
[SourceTitle "playchess.com"]
[Source "ChessBase"]
[SourceQuality "1"]
[TimeControl "40/5400+30:1800+30"]

1. d4 {[%emt 0:00:05]} Nf6 {[%emt 0:00:16]} 2. c4 {[%emt 0:00:12]} c5 {[%emt 0:00:31]} 3. Nf3 {[%emt 0:00:15]} cxd4 {[%emt 0:01:01]} 4. Nxd4 {[%emt 0:00:07]} e5 {[%emt 0:00:39]} 5. Nb5 {[%emt 0:00:12]} d5 {[%emt 0:00:22]} 6. cxd5 {[%emt 0:00:35]} a6 {[%emt 0:01:01]} 7. N5c3 {[%emt 0:01:18]} Bc5 {[%emt 0:00:09]} 8. g3 {[%emt 0:03:49]} Bf5 {[%emt 0:07:37]} 9. Bg2 {[%emt 0:03:47]} e4 {[%emt 0:03:59]} 10. O-O {[%emt 0:03:51]} O-O {[%emt 0:00:52]} 11. Be3 {[%emt 0:04:27]} Bxe3 {[%emt 0:03:53]} 12. fxe3 {[%emt 0:00:03]} Bg6 {[%emt 0:00:05]} 13. Qd4 {[%emt 0:01:01]} Nbd7 {[%emt 0:00:32]} 14. Nd2 {[%emt 0:06:46]} Qb6 {[%emt 0:06:16]} 15. Ndxe4 {[%emt 0:05:17]} Ng4 {[%emt 0:01:25]} 16. Qxb6 {[%emt 0:12:20]} Nxb6 {[%emt 0:00:04]} 17. Nc5 {[%emt 0:06:25]} Nxe3 {[%emt 0:00:58]} 18. Rf3 {[%emt 0:04:40]} Nxg2 {[%emt 0:05:02]} 19. Kxg2 {[%emt 0:00:07]} Nc4 {[%emt 0:00:28]} 20. e4 {[%emt 0:09:06]} Rac8 {[%emt 0:12:08]} 21. Nxb7 {[%emt 0:04:49]} Rc7 {[%emt 0:00:17]} 22. b3 {[%emt 0:06:42]} Ne5 {[%emt 0:00:17]} 23. Re3 {[%emt 0:01:14]} Rxb7 {[%emt 0:00:06]} 24. Rd1 {[%emt 0:00:34]} Rd8 {[%emt 0:01:09]} 25. h3 {[%emt 0:00:50]} Rc7 {[%emt 0:01:29]} 26. Rd4 {[%emt 0:00:42]} Rdc8 {[%emt 0:01:04]} 27. Ne2 {[%emt 0:00:18]} Rc2 {[%emt 0:00:14]} 28. Ra4 {[%emt 0:00:10]} Nd3 {[%emt 0:06:01]} 29. Rxa6 {[%emt 0:05:14]} Nc5 {[%emt 0:01:54]} 30. Rc6 {[%emt 0:00:54]} Rxc6 {[%emt 0:00:13]} 31. dxc6 {[%emt 0:00:07]} Bxe4+ {[%emt 0:02:18]} 32. Kf1 {[%emt 0:00:25]} Bxc6 {[%emt 0:00:32]} 33. Nd4 {[%emt 0:00:33]} Rc1+ {[%emt 0:00:12]} 34. Ke2 {[%emt 0:03:13]} Bd7 {[%emt 0:01:51]} 35. Kd2 {[%emt 0:01:50]} Rh1 {[%emt 0:01:19]} 36. h4 {[%emt 0:01:42]} Rh2+ {[%emt 0:01:04]} 37. Re2 {[%emt 0:01:22]} Rxe2+ {[%emt 0:06:27]} 38. Nxe2 {[%emt 0:00:42]} Kf8 {[%emt 0:00:26]} 39. b4 {[%emt 0:00:25]} Ne4+ {[%emt 0:01:15]} 40. Ke3 {[%emt 0:00:11]} Nd6 {[%emt 0:00:15]} 41. Kd4 {[%emt 0:30:46]} Ke7 {[%emt 0:32:07]} 42. Kc5 {[%emt 0:03:06]} Ne4+ {[%emt 0:00:30]} 43. Kd5 {[%emt 0:00:48]} f5 {[%emt 0:05:05]} 44. Ke5 {[%emt 0:04:06]} g6 {[%emt 0:03:02]} 45. g4 {[%emt 0:03:52]} Nd6 {[%emt 0:00:13]} 46. gxf5 {[%emt 0:01:14]} gxf5 {[%emt 0:02:16]} 47. Nf4 {[%emt 0:01:25]} Nc4+ {[%emt 0:01:29]} 48. Kd4 {[%emt 0:01:17]} Nd2 {[%emt 0:02:32]} 49. Kc5 {[%emt 0:00:00]} Ne4+ {[%emt 0:00:00]} 50. Kd5 {[%emt 0:00:00]} Nc3+ {[%emt 0:00:00]} 51. Ke5 {[%emt 0:00:00]} Nxa2 {[%emt 0:00:00]} 52. Nd5+ {[%emt 0:00:00]} Kf7 {[%emt 0:00:00]} 53. Nf6 {[%emt 0:00:00]} Bc8 {[%emt 0:00:00]} 54. Nxh7 {[%emt 0:00:00]} Nxb4 {[%emt 0:00:00]} 55. Ng5+ {[%emt 0:00:00]} Kg6 {[%emt 0:00:00]} 56. Kf4 {[%emt 0:00:00]} Nd3+ {[%emt 0:00:00]} 57. Ke3 {[%emt 0:00:00]} Nc5 {[%emt 0:00:00]} 58. Nf3 {[%emt 0:00:00]} Ne6 {[%emt 0:00:00]} 59. Ne5+ {[%emt 0:00:00]} Kf6 {[%emt 0:00:00]} 60. Nd3 {[%emt 0:00:00]} Bb7 {[%emt 0:00:00]} 61. Kf2 {[%emt 0:00:00]} Be4 {[%emt 0:00:00]} 62. Nc1 {[%emt 0:00:00]} Nf4 {[%emt 0:00:00]} 63. Nb3 {[%emt 0:00:00]} Ke5 {[%emt 0:00:00]} 64. Nd2 {[%emt 0:00:00]} Nh5 {[%emt 0:00:00]} 65. Nc4+ {[%emt 0:00:00]} Kf4 {[%emt 0:00:00]} 66. Ne3 {[%emt 0:00:00]} Nf6 {[%emt 0:00:00]} 67. Nxf5 {[%emt 0:00:00]} Bxf5 {[%emt 0:00:00]} 68. Ke2 {[%emt 0:00:00]} Kg4 {[%emt 0:00:00]} 69. Ke3 {[%emt 0:00:00]} Kxh4 {[%emt 0:00:00]} 70. Kf4 {[%emt 0:00:00]} Bc8 {[%emt 0:00:00]} 71. Ke5 {[%emt 0:00:00]} Kg5 {[%emt 0:00:00]} 72. Kd4 {[%emt 0:00:00]} Kf5 {[%emt 0:00:00]} 73. Kc4 {[%emt 0:00:00]} Ke5 {[%emt 0:00:00]} 74. Kc3 {[%emt 0:00:00]} Ba6 {[%emt 0:00:00]} 75. Kc2 {[%emt 0:00:00]} Kd4 {[%emt 0:00:00]} 76. Kb2 {[%emt 0:00:00]} Nd5 {[%emt 0:00:00]} 77. Kb3 {[%emt 0:00:00]} Bb5 {[%emt 0:00:00]} 78. Kc2 {[%emt 0:00:00]} Bc4 {[%emt 0:00:00]} 79. Kb2 {[%emt 0:00:00]} Kd3 {[%emt 0:00:00]} 80. Ka3 {[%emt 0:00:00]} Kc3 {[%emt 0:00:00]} 81. Ka4 {[%emt 0:00:00]} Nb6+ {[%emt 0:08:14]} 82. Ka3 {[%emt 0:00:00]} Nd7 {[%emt 0:00:14]} 83. Ka4 {[%emt 0:00:00]} Ne5 {[%emt 0:02:12]} 84. Ka3 {[%emt 0:00:48]} Nd3 {[%emt 0:09:58]} 85. Ka4 {[%emt 0:00:08]} Kd4 {[%emt 0:06:18]} 86. Ka3 {[%emt 0:00:20]} Bd5 {[%emt 0:00:38]} 87. Ka4 {[%emt 0:00:13]} Kc4 {[%emt 0:01:01]} 88. Ka3 {[%emt 0:00:55]} Kc3 {[%emt 0:00:38]} 89. Ka4 {[%emt 0:00:09]} Nc5+ {[%emt 0:03:39]} 90. Ka3 {[%emt 0:01:04]} Ne4 {[%emt 0:00:05]} 91. Ka4 {[%emt 0:00:08]} Nd6 {[%emt 0:04:55]} 92. Ka3 {[%emt 0:01:12]} Nb5+ {[%emt 0:00:16]} 93. Ka4 {[%emt 0:00:07]} Kc4 {[%emt 0:00:10]} 94. Ka5 {[%emt 0:00:09]} Kc5 {[%emt 0:00:25]} 95. Ka4 {[%emt 0:00:18]} Be6 {[%emt 0:01:01]} 96. Ka5 {[%emt 0:00:08]} Bb3 {[%emt 0:00:21]} 97. Ka6 {[%emt 0:00:09]} Nd6 {[%emt 0:01:19]} 98. Ka5 {[%emt 0:00:44]} Nb7+ {[%emt 0:00:24]} 99. Ka6 {[%emt 0:00:07]} Kc6 {[%emt 0:00:07]} 100. Ka7 {[%emt 0:00:10]} Kc7 {[%emt 0:00:25]} 101. Ka6 {[%emt 0:00:45]} Bc4+ {[%emt 0:00:11]} 102. Ka7 {[%emt 0:00:07]} Nd6 {[%emt 0:01:08]} 103. Ka8 {[%emt 0:00:10]} Bb5 {[%emt 0:00:17]} 104. Ka7 {[%emt 0:00:10]} Nc8+ {[%emt 0:00:04]} 105. Ka8 {[%emt 0:00:07]} Bc6# {[%emt 0:00:11]} 0-1

[Event "XII Cracow ICC-B 2024"]
[Site "Krakow"]
[Date "2024.06.26"]
[Round "6.2"]
[White "Wasiluk, Dominik"]
[Black "Botez, Andrea"]
[Result "0-1"]
[ECO "B21"]
[WhiteElo "1709"]
[BlackElo "1906"]
[Annotator "NA RC"]
[PlyCount "47"]
[EventDate "2024.06.20"]
[EventType "swiss"]
[EventCountry "POL"]
[SourceTitle "playchess.com"]
[Source "ChessBase"]
[SourceQuality "1"]
[TimeControl "40/5400+30:1800+30"]

1. e4 {[%emt 0:02:12]} c5 {[%emt 0:00:18]} 2. d4 {[%emt 0:00:06]} cxd4 {[%emt 0:00:28]} 3. c3 {[%emt 0:00:07]} dxc3 {[%emt 0:00:18]} 4. Nxc3 {[%emt 0:00:06]} e6 {[%emt 0:00:31]} 5. Nf3 {[%emt 0:00:08]} Bb4 {[%emt 0:00:50]} 6. Bf4 {[%emt 0:00:50]} Nf6 {[%emt 0:01:57]} 7. Bd3 {[%emt 0:06:46]} Nc6 {[%emt 0:04:20]} 8. O-O {[%emt 0:00:19]} d6 {[%emt 0:03:31]} 9. h3 {[%emt 0:06:32]} O-O {[%emt 0:02:15]} 10. Qe2 {[%emt 0:00:56]} e5 {[%emt 0:01:39]} 11. Bg5 {[%emt 0:01:30]} Bxc3 {[%emt 0:01:13]} 12. bxc3 {[%emt 0:01:02]} h6 {[%emt 0:00:23]} 13. Bc1 {[%emt 0:11:24]} Nd7 {[%emt 0:04:35]} 14. Rd1 {[%emt 0:04:08]} Nc5 {[%emt 0:05:22]} 15. Bc2 {[%emt 0:06:48]} Qf6 {[%emt 0:06:05]} 16. Nd2 {[%emt 0:06:11]} Qg6 {[%emt 0:03:45]} 17. Kh1 {[%emt 0:08:50]} Rd8 {[%emt 0:01:33]} 18. Ba3 {[%emt 0:03:05]} b6 {[%emt 0:11:53]} 19. Nb3 {[%emt 0:32:10]} Ba6 {[%emt 0:07:00]} 20. Qf3 {[%emt 0:01:22]} Bb7 {[%emt 0:01:15]} 21. Rd2 {[%emt 0:03:28]} Qg5 {[%emt 0:22:20]} 22. Rad1 {[%emt 0:00:34]} Qe7 {[%emt 0:00:25]} 23. Nc1 {[%emt 0:02:54]} Na5 {[%emt 0:01:30]} 24. Re2 {[%emt 0:00:00]} 0-1

[Event "XII Cracow ICC-B 2024"]
[Site "Krakow"]
[Date "2024.06.26"]
[Round "6.3"]
[White "Kaim, Piotr"]
[Black "Polak, Michal"]
[Result "1/2-1/2"]
[ECO "A08"]
[WhiteElo "2094"]
[BlackElo "1996"]
[Annotator "RC"]
[PlyCount "61"]
[EventDate "2024.06.20"]
[EventType "swiss"]
[EventCountry "POL"]
[SourceTitle "playchess.com"]
[Source "ChessBase"]
[SourceQuality "1"]
[TimeControl "40/5400+30:1800+30"]

1. g3 {[%emt 0:00:29]} Nf6 {[%emt 0:01:24]} 2. Bg2 {[%emt 0:00:12]} e6 {[%emt 0:00:22]} 3. Nf3 {[%emt 0:01:21]} d5 {[%emt 0:00:19]} 4. O-O {[%emt 0:00:18]} Be7 {[%emt 0:00:15]} 5. d3 {[%emt 0:00:24]} O-O {[%emt 0:00:11]} 6. Nbd2 {[%emt 0:00:12]} c5 {[%emt 0:02:51]} 7. e4 {[%emt 0:00:36]} Nc6 {[%emt 0:01:24]} 8. Re1 {[%emt 0:00:54]} d4 {[%emt 0:08:25]} 9. e5 {[%emt 0:01:11]} Nd5 {[%emt 0:01:27]} 10. a4 {[%emt 0:02:26]} f5 {[%emt 0:11:09]} 11. exf6 {[%emt 0:00:31]} gxf6 {[%emt 0:03:23]} 12. Nc4 {[%emt 0:11:58]} Kh8 {[%emt 0:02:45]} 13. c3 {[%emt 0:10:11]} e5 {[%emt 0:04:13]} 14. Nh4 {[%emt 0:01:19]} dxc3 {[%emt 0:13:21]} 15. Qh5 {[%emt 0:04:16]} cxb2 {[%emt 0:15:00]} 16. Bxb2 {[%emt 0:27:08]} Rg8 {[%emt 0:07:16]} 17. Qf7 {[%emt 0:04:07]} Ndb4 {[%emt 0:18:25]} 18. Nxe5 {[%emt 0:03:13]} Nxe5 {[%emt 0:02:48]} 19. Rxe5 {[%emt 0:01:56]} Rg7 {[%emt 0:00:50]} 20. Qh5 {[%emt 0:02:45]} fxe5 {[%emt 0:00:30]} 21. Qxe5 {[%emt 0:00:30]} Qf8 {[%emt 0:01:30]} 22. Re1 {[%emt 0:06:53]} Nxd3 {[%emt 0:02:30]} 23. Qxg7+ {[%emt 0:03:03]} Qxg7 {[%emt 0:00:30]} 24. Bxg7+ {[%emt 0:00:30]} Kxg7 {[%emt 0:00:30]} 25. Rxe7+ {[%emt 0:00:30]} Kf6 {[%emt 0:00:30]} 26. Rxh7 {[%emt 0:00:30]} Be6 {[%emt 0:00:14]} 27. Bxb7 {[%emt 0:03:28]} Rb8 {[%emt 0:00:11]} 28. Nf3 {[%emt 0:00:47]} c4 {[%emt 0:01:23]} 29. Rh6+ {[%emt 0:02:09]} Ke7 {[%emt 0:00:42]} 30. Nd4 {[%emt 0:00:18]} Bd7 {[%emt 0:00:32]} 31. Be4 {[%emt 0:06:38]} 1/2-1/2

[Event "XII Cracow ICC-B 2024"]
[Site "Krakow"]
[Date "2024.06.26"]
[Round "6.4"]
[White "Wnek, Filip"]
[Black "Botez, Alexandra"]
[Result "1-0"]
[ECO "C11"]
[WhiteElo "2019"]
[BlackElo "2011"]
[Annotator "ChessBase"]
[PlyCount "65"]
[EventDate "2024.06.20"]
[EventType "swiss"]
[EventCountry "POL"]
[SourceTitle "playchess.com"]
[Source "ChessBase"]
[SourceQuality "1"]
[TimeControl "40/5400+30:1800+30"]

1. e4 {[%emt 0:00:04]} e6 {[%emt 0:00:06]} 2. d4 {[%emt 0:00:05]} d5 {[%emt 0:00:03]} 3. Nc3 {[%emt 0:00:16]} Nf6 {[%emt 0:00:06]} 4. e5 {[%emt 0:00:13]} Nfd7 {[%emt 0:00:07]} 5. f4 {[%emt 0:00:10]} c5 {[%emt 0:00:06]} 6. Nf3 {[%emt 0:00:30]} Nc6 {[%emt 0:00:11]} 7. Be3 {[%emt 0:01:20]} Be7 {[%emt 0:00:07]} 8. Qd2 {[%emt 0:06:21]} b6 {[%emt 0:00:43]} 9. g3 {[%emt 0:00:20]} O-O {[%emt 0:01:35]} 10. Bh3 {[%emt 0:02:55]} cxd4 {[%emt 0:08:54]} 11. Nxd4 {[%emt 0:00:48]} Bb7 {[%emt 0:02:38]} 12. O-O-O {[%emt 0:30:31]} Na5 {[%emt 0:03:01]} 13. Bxe6 {[%emt 0:27:27]} Bb4 {[%emt 0:03:56]} 14. Bxd7 {[%emt 0:05:28]} Qxd7 {[%emt 0:00:28]} 15. Qd3 {[%emt 0:01:25]} Qc8 {[%emt 0:04:41]} 16. Bd2 {[%emt 0:03:40]} Nc4 {[%emt 0:00:29]} 17. Be1 {[%emt 0:00:40]} Rd8 {[%emt 0:05:52]} 18. Rg1 {[%emt 0:04:49]} Bf8 {[%emt 0:05:11]} 19. Bf2 {[%emt 0:01:15]} a6 {[%emt 0:02:38]} 20. Qf5 {[%emt 0:02:19]} Qc7 {[%emt 0:01:46]} 21. e6 {[%emt 0:00:39]} f6 {[%emt 0:01:12]} 22. Nb3 {[%emt 0:03:11]} Rac8 {[%emt 0:11:08]} 23. Bd4 {[%emt 0:00:24]} Re8 {[%emt 0:13:11]} 24. Rg2 {[%emt 0:03:05]} Qc6 {[%emt 0:05:50]} 25. Re2 {[%emt 0:00:35]} Bb4 {[%emt 0:01:00]} 26. Bxf6 {[%emt 0:04:03]} gxf6 {[%emt 0:07:51]} 27. Nxd5 {[%emt 0:00:10]} Be7 {[%emt 0:00:24]} 28. Nxe7+ {[%emt 0:00:24]} Rxe7 {[%emt 0:00:06]} 29. Qxf6 {[%emt 0:00:10]} Qc7 {[%emt 0:04:07]} 30. Rd7 {[%emt 0:00:30]} Rxd7 {[%emt 0:04:29]} 31. exd7 {[%emt 0:00:05]} Qxd7 {[%emt 0:00:04]} 32. Re7 {[%emt 0:00:09]} Qg4 {[%emt 0:00:05]} 33. Qf7+ {[%emt 0:00:09]} 1-0

[Event "XII Cracow ICC-B 2024"]
[Site "Krakow"]
[Date "2024.06.26"]
[Round "6.5"]
[White "Palacki, Rafal"]
[Black "Padalka, Artem"]
[Result "0-1"]
[ECO "B20"]
[WhiteElo "1919"]
[BlackElo "2177"]
[Annotator "RC"]
[PlyCount "70"]
[EventDate "2024.06.20"]
[EventType "swiss"]
[EventCountry "POL"]
[SourceTitle "playchess.com"]
[Source "ChessBase"]
[SourceQuality "1"]
[TimeControl "40/5400+30:1800+30"]

1. e4 {[%emt 0:04:06]} c5 {[%emt 0:00:51]} 2. b3 {[%emt 0:00:41]} e5 {[%emt 0:05:42]} 3. Bb2 {[%emt 0:00:16]} Nc6 {[%emt 0:01:41]} 4. Bc4 {[%emt 0:00:05]} Nf6 {[%emt 0:04:16]} 5. Nc3 {[%emt 0:00:49]} Be7 {[%emt 0:09:36]} 6. Nge2 {[%emt 0:01:31]} O-O {[%emt 0:11:11]} 7. O-O {[%emt 0:01:19]} Nxe4 {[%emt 0:03:49]} 8. Nxe4 {[%emt 0:00:25]} d5 {[%emt 0:00:02]} 9. Bb5 {[%emt 0:02:34]} dxe4 {[%emt 0:00:19]} 10. Bxc6 {[%emt 0:00:22]} bxc6 {[%emt 0:00:02]} 11. Bxe5 {[%emt 0:00:45]} Qd5 {[%emt 0:12:50]} 12. Bc3 {[%emt 0:07:41]} Ba6 {[%emt 0:04:53]} 13. f3 {[%emt 0:10:36]} f5 {[%emt 0:00:18]} 14. fxe4 {[%emt 0:02:03]} fxe4 {[%emt 0:00:02]} 15. Rxf8+ {[%emt 0:01:08]} Rxf8 {[%emt 0:00:05]} 16. Ng3 {[%emt 0:00:52]} Bf6 {[%emt 0:19:25]} 17. Qe1 {[%emt 0:13:37]} Bd4+ {[%emt 0:01:07]} 18. Kh1 {[%emt 0:02:41]} Rf4 {[%emt 0:04:46]} 19. Ne2 {[%emt 0:11:03]} Bxe2 {[%emt 0:05:31]} 20. Qxe2 {[%emt 0:00:08]} Rf2 {[%emt 0:00:01]} 21. Qg4 {[%emt 0:03:54]} h5 {[%emt 0:07:31]} 22. Qc8+ {[%emt 0:13:42]} Kh7 {[%emt 0:00:02]} 23. Qa6 {[%emt 0:05:20]} Bxc3 {[%emt 0:05:31]} 24. dxc3 {[%emt 0:00:07]} Rxc2 {[%emt 0:00:15]} 25. c4 {[%emt 0:02:36]} Qd2 {[%emt 0:01:37]} 26. Rg1 {[%emt 0:00:05]} Rc1 {[%emt 0:00:24]} 27. h3 {[%emt 0:00:29]} Rxg1+ {[%emt 0:00:16]} 28. Kxg1 {[%emt 0:00:04]} Qc1+ {[%emt 0:00:38]} 29. Kh2 {[%emt 0:01:22]} Qf4+ {[%emt 0:00:03]} 30. Kg1 {[%emt 0:00:32]} e3 {[%emt 0:00:29]} 31. Qxc6 {[%emt 0:00:25]} e2 {[%emt 0:00:50]} 32. Qe8 {[%emt 0:00:11]} Qf1+ {[%emt 0:00:19]} 33. Kh2 {[%emt 0:00:02]} e1=Q {[%emt 0:00:19]} 34. Qxh5+ {[%emt 0:00:05]} Kg8 {[%emt 0:00:07]} 35. Qd5+ {[%emt 0:00:04]} Qf7 {[%emt 0:00:11]} 0-1

[Event "XII Cracow ICC-B 2024"]
[Site "Krakow"]
[Date "2024.06.26"]
[Round "6.6"]
[White "Pietrzak, Tomasz"]
[Black "Soldo, Dario"]
[Result "1-0"]
[ECO "A50"]
[WhiteElo "1918"]
[BlackElo "2018"]
[Annotator "RC"]
[PlyCount "223"]
[EventDate "2024.06.20"]
[EventType "swiss"]
[EventCountry "POL"]
[SourceTitle "playchess.com"]
[Source "ChessBase"]
[SourceQuality "1"]
[TimeControl "40/5400+30:1800+30"]

1. c4 {[%emt 0:02:21]} Nf6 {[%emt 0:00:12]} 2. d4 {[%emt 0:00:04]} c6 {[%emt 0:00:44]} 3. Nf3 {[%emt 0:02:00]} d5 {[%emt 0:00:31]} 4. Qc2 {[%emt 0:05:40]} e6 {[%emt 0:05:08]} 5. g3 {[%emt 0:00:05]} Bd6 {[%emt 0:00:24]} 6. Bg2 {[%emt 0:00:10]} O-O {[%emt 0:00:45]} 7. O-O {[%emt 0:00:21]} Ne4 {[%emt 0:07:50]} 8. b3 {[%emt 0:09:14]} Nd7 {[%emt 0:01:42]} 9. Ba3 {[%emt 0:01:25]} Bxa3 {[%emt 0:05:22]} 10. Nxa3 {[%emt 0:00:09]} Qe7 {[%emt 0:00:03]} 11. Qb2 {[%emt 0:00:33]} b6 {[%emt 0:03:05]} 12. Rac1 {[%emt 0:03:21]} Ba6 {[%emt 0:03:51]} 13. b4 {[%emt 0:01:06]} c5 {[%emt 0:10:23]} 14. dxc5 {[%emt 0:04:45]} bxc5 {[%emt 0:01:19]} 15. b5 {[%emt 0:00:01]} Bb7 {[%emt 0:00:17]} 16. Nd2 {[%emt 0:02:14]} Ndf6 {[%emt 0:02:32]} 17. Nb3 {[%emt 0:22:33]} Rac8 {[%emt 0:04:29]} 18. e3 {[%emt 0:13:02]} Rfd8 {[%emt 0:18:04]} 19. f3 {[%emt 0:04:45]} Nd6 {[%emt 0:00:11]} 20. Na5 {[%emt 0:03:30]} Ba8 {[%emt 0:02:44]} 21. Rfd1 {[%emt 0:01:43]} Nf5 {[%emt 0:00:52]} 22. Nc2 {[%emt 0:03:26]} Qc7 {[%emt 0:06:22]} 23. Qc3 {[%emt 0:01:01]} d4 {[%emt 0:13:26]} 24. exd4 {[%emt 0:00:27]} cxd4 {[%emt 0:00:05]} 25. Qb4 {[%emt 0:05:55]} d3 {[%emt 0:05:18]} 26. Ne1 {[%emt 0:00:13]} Qe5 {[%emt 0:02:44]} 27. Nxd3 {[%emt 0:02:24]} Qe3+ {[%emt 0:00:34]} 28. Nf2 {[%emt 0:00:04]} Bxf3 {[%emt 0:00:40]} 29. Re1 {[%emt 0:01:16]} Be2 {[%emt 0:01:21]} 30. Qc3 {[%emt 0:01:34]} Qd2 {[%emt 0:03:13]} 31. Nc6 {[%emt 0:00:31]} Rd7 {[%emt 0:00:33]} 32. Qxd2 {[%emt 0:01:38]} Rxd2 {[%emt 0:00:05]} 33. Nxa7 {[%emt 0:00:01]} Rxc4 {[%emt 0:00:36]} 34. b6 {[%emt 0:01:29]} Rxc1 {[%emt 0:01:15]} 35. Rxc1 {[%emt 0:00:03]} Ba6 {[%emt 0:00:16]} 36. b7 {[%emt 0:01:03]} Bxb7 {[%emt 0:00:05]} 37. Bxb7 {[%emt 0:00:03]} Nd6 {[%emt 0:00:06]} 38. Bf3 {[%emt 0:00:45]} Rxa2 {[%emt 0:00:31]} 39. Nb5 {[%emt 0:01:16]} Nde8 {[%emt 0:00:58]} 40. Rc8 {[%emt 0:03:09]} Ra1+ {[%emt 0:00:21]} 41. Kg2 {[%emt 0:30:07]} Kf8 {[%emt 0:30:39]} 42. Nd6 {[%emt 0:02:40]} Ke7 {[%emt 0:00:28]} 43. Nxe8 {[%emt 0:00:03]} Nxe8 {[%emt 0:00:05]} 44. Rb8 {[%emt 0:00:29]} Nd6 {[%emt 0:01:33]} 45. Rb2 {[%emt 0:00:44]} Ra3 {[%emt 0:00:00]} 46. Ne4 {[%emt 0:00:00]} Nxe4 {[%emt 0:00:00]} 47. Bxe4 {[%emt 0:00:00]} f5 {[%emt 0:00:00]} 48. Bf3 {[%emt 0:00:00]} Ra6 {[%emt 0:00:00]} 49. h4 {[%emt 0:00:00]} Kf6 {[%emt 0:00:00]} 50. Kf2 {[%emt 0:00:00]} g6 {[%emt 0:00:00]} 51. Be2 {[%emt 0:00:00]} Ra7 {[%emt 0:00:00]} 52. Rb6 {[%emt 0:00:00]} Re7 {[%emt 0:00:00]} 53. Bc4 {[%emt 0:00:00]} h5 {[%emt 0:00:00]} 54. Ke3 {[%emt 0:00:00]} g5 {[%emt 0:00:00]} 55. hxg5+ {[%emt 0:00:00]} Kxg5 {[%emt 0:00:00]} 56. Rb8 {[%emt 0:00:00]} Rg7 {[%emt 0:00:00]} 57. Kf3 {[%emt 0:00:00]} e5 {[%emt 0:00:00]} 58. Re8 {[%emt 0:00:00]} e4+ {[%emt 0:00:00]} 59. Ke3 {[%emt 0:00:00]} Kg4 {[%emt 0:00:00]} 60. Kf2 {[%emt 0:02:45]} h4 {[%emt 0:01:30]} 61. Be2+ {[%emt 0:00:05]} Kg5 {[%emt 0:00:14]} 62. gxh4+ {[%emt 0:01:16]} Kxh4 {[%emt 0:00:05]} 63. Rh8+ {[%emt 0:01:38]} Kg5 {[%emt 0:00:06]} 64. Ke3 {[%emt 0:00:08]} Kf6 {[%emt 0:00:47]} 65. Rf8+ {[%emt 0:00:57]} Rf7 {[%emt 0:00:36]} 66. Ra8 {[%emt 0:00:28]} Rh7 {[%emt 0:01:34]} 67. Bc4 {[%emt 0:01:18]} Rh3+ {[%emt 0:00:35]} 68. Kd4 {[%emt 0:00:01]} Kg5 {[%emt 0:01:12]} 69. Ke5 {[%emt 0:00:31]} Rf3 {[%emt 0:04:55]} 70. Rg8+ {[%emt 0:02:01]} Kh4 {[%emt 0:00:12]} 71. Bd5 {[%emt 0:02:48]} Rg3 {[%emt 0:01:05]} 72. Rh8+ {[%emt 0:00:37]} Kg4 {[%emt 0:00:06]} 73. Be6 {[%emt 0:01:08]} Kf3 {[%emt 0:00:49]} 74. Bxf5 {[%emt 0:00:06]} e3 {[%emt 0:00:28]} 75. Be4+ {[%emt 0:00:53]} Ke2 {[%emt 0:01:08]} 76. Kf4 {[%emt 0:00:36]} Rg7 {[%emt 0:00:17]} 77. Rh2+ {[%emt 0:00:06]} Kd1 {[%emt 0:00:25]} 78. Kxe3 {[%emt 0:00:02]} Rg3+ {[%emt 0:00:37]} 79. Kd4 {[%emt 0:00:34]} Ra3 {[%emt 0:00:27]} 80. Bd3 {[%emt 0:00:20]} Kc1 {[%emt 0:00:29]} 81. Rc2+ {[%emt 0:00:31]} Kb1 {[%emt 0:01:02]} 82. Rf2+ {[%emt 0:01:21]} Ka1 {[%emt 0:00:35]} 83. Kc4 {[%emt 0:00:24]} Ra4+ {[%emt 0:00:15]} 84. Kc3 {[%emt 0:00:22]} Ra3+ {[%emt 0:00:05]} 85. Kd4 {[%emt 0:00:05]} Ra4+ {[%emt 0:00:22]} 86. Bc4 {[%emt 0:00:14]} Ra3 {[%emt 0:00:24]} 87. Kc5 {[%emt 0:00:31]} Rg3 {[%emt 0:00:30]} 88. Kb4 {[%emt 0:00:12]} Kb1 {[%emt 0:00:21]} 89. Bb3 {[%emt 0:00:27]} Rg1 {[%emt 0:01:01]} 90. Re2 {[%emt 0:01:50]} Rg7 {[%emt 0:00:51]} 91. Ka3 {[%emt 0:00:55]} Ra7+ {[%emt 0:00:09]} 92. Ba4 {[%emt 0:00:04]} Kc1 {[%emt 0:00:26]} 93. Rc2+ {[%emt 0:00:10]} Kb1 {[%emt 0:00:08]} 94. Rd2 {[%emt 0:00:17]} Rc7 {[%emt 0:00:25]} 95. Rd1+ {[%emt 0:00:05]} Rc1 {[%emt 0:00:16]} 96. Rd2 {[%emt 0:01:54]} Rc3+ {[%emt 0:01:02]} 97. Kb4 {[%emt 0:00:17]} Rc1 {[%emt 0:00:08]} 98. Bb5 {[%emt 0:00:23]} Rg1 {[%emt 0:01:09]} 99. Kc3 {[%emt 0:00:21]} Rg3+ {[%emt 0:00:45]} 100. Bd3+ {[%emt 0:00:03]} Kc1 {[%emt 0:00:38]} 101. Rc2+ {[%emt 0:00:14]} Kd1 {[%emt 0:00:13]} 102. Rf2 {[%emt 0:00:22]} Rg1 {[%emt 0:00:43]} 103. Re2 {[%emt 0:01:31]} Rg7 {[%emt 0:00:25]} 104. Rf2 {[%emt 0:00:40]} Rc7+ {[%emt 0:00:25]} 105. Bc4 {[%emt 0:00:04]} Re7 {[%emt 0:00:10]} 106. Rf1+ {[%emt 0:00:16]} Re1 {[%emt 0:00:09]} 107. Rf6 {[%emt 0:00:31]} Rg1 {[%emt 0:00:40]} 108. Rf3 {[%emt 0:01:02]} Kc1 {[%emt 0:01:02]} 109. Rf8 {[%emt 0:01:14]} Kd1 {[%emt 0:00:44]} 110. Re8 {[%emt 0:00:24]} Rg3+ {[%emt 0:00:34]} 111. Bd3 {[%emt 0:00:03]} Rg7 {[%emt 0:00:22]} 112. Bc2+ {[%emt 0:00:06]} 1-0